Workbook

Sheet Introduction
B1: NCASI Spreadsheet for Calculating GHG Emissions from Wood Products Manufacturing Facilities English Units Workbook Version 1.1 (see below for USER AGREEMENT)
C2: An aid to developing estimates using the methods in "Calculation tools for estimating greenhouse gas emissions from wood products manufacturing facilities," Report Version 1.0
C4: This tool intends to facilitate the calculation of direct CO2, CH4, and N2O emissions from wood products manufacturing facilities and ancillary operations. It also addresses emissions attributable to the purchase and export of electricity and/or steam.
C8: The example reporting format provided in the "Calculation tools for estimating greehouse gas emissions from wood products manufacturing facilities" can be achieved by printing the following completed worksheets:
D10: Operations in Inventory
D11: Direct - Fuel Combust. | G11: EXPLANATION OF CELL COLOR SCHEME
D12: Direct - Mobile & Transportation
D13: Direct - Waste Mngmt. | H13: User entry
D14: CHP allocation | H14: Calculated value
D15: Indirect - Energy Imports
D16: Indirect - Energy Exports
D17: Summary Table
D18: Supporting Information on Biomass
C20: Global warming potentials used in this tool are: | F20: =GWP_CH4_AR6 -> 27.9 | G20: lb CO2 eq./lb CH4
F21: =GWP_N2O_AR6 -> 273 | G21: lb CO2 eq./lb N2O
C23: This spreadsheet was developed by NCASI with some material from WRI and WBCSD. Questions or comments on this material can be directed to: Barry Malmberg NCASI PO Box 271 Sheridan, WY, USA 82801 phone: (541) 249-3986 e-mail: bmalmberg@ncasi.org
C25: User Agreement: By using the Spreadsheets and associated materials in any manner, the User agrees to the following terms of this agreement:
C27: 1 | D27: Copyright: Portions of the spreadsheets and associated materials were developed by WRI, WBCSD or NCASI, are copyrighted, and are published here with the permission of those developers. The User acknowledges these copyrights.
C28: 2 | D28: Acknowledgement: The User agrees to acknowledge WRI, WBCSD, and NCASI for their roles in developing the Spreadsheets whenever the User authors reports or publications based in whole or in part on the use of the Spreadsheets.
C29: 3 | D29: Disclaimer: These Spreadsheets and associated materials have been prepared with a high degree of expertise and professionalism, and it is believed that the Spreadsheets provide a useful and accurate approach for calculating greenhouse gas emissions. However, the organizations involved in their development, including WRI, WBCSD, and NCASI, collectively and individually, do not warrant these Spreadsheets for any purpose, nor do they make any representations regarding their fitness for any use or purpose whatsoever. Each User agrees to decide if, when and how to use the Spreadsheets, and does so at his or her sole risk. Under no circumstances shall WRI, WBCSD, or NCASI be liable for any damages, including incidental, special or consequential damages, arising from the use of these Spreadsheets or an inability to use them.

Sheet Table of Contents
B1: TABLE OF CONTENTS
C2: Name of worksheet | D2: Content / purpose
C4: Introduction
C5: Table of Contents
C6: Operations in Inventory | D6: Describing the inventory boundaries and listing the operations included in the inventory
C7: Direct - Fuel Combust. | D7: Direct emissions of CO2, CH4, and N2O resulting from fuel combustion in stationary devices - includes emission factors from IPCC
C8: Mobile & Transportation | D8: Emissions of CO2, CH4, and N2O from fuel combustion in mobile equipment and transportation devices
C9: Waste Mngmt. | D9: Emissions of CH4 resulting from mill-owned landfills or anaerobic treatment operations
C10: CHP Allocation | D10: Allocation emissions from combined heat and power systems
C11: Indirect - Energy Imports | D11: GHG emissions resulting from electricity and /or steam imports
C12: Indirect - Energy Exports | D12: GHG emission impacts associated with electricity and /or steam exports
C13: Summary Table | D13: Summarizes results of inventory
C14: Custom Emission Factors | D14: Calculating custom emission factors
C15: Energy Content | D15: Fuel specific higher heating values
C16: Conversion Factors | D16: Factors for converting among common units of measure
C17: Supporting Info. on Biomass | D17: Direct emissions of biomass CO2 for informational purposes only (do not include in GHG inventory)
C18: GWPs | D18: Global warming potentials from IPCC reports

Sheet Operations in Inventory
B1: OPERATIONS IN INVENTORY
B2: This worksheet is for showing which operations are included in the inventory
F3: User enters information in spaces with this color
B5: Operations in the Inventory
F7: Identifying name assigned to this inventory:
F9: Use this space to provide a general description of operational boundaries.
F12: Use this space to provide additional information helpful to understanding the operational boundaries of the inventory.
F15: Use this space to provide additional information helpful to understanding how emissions from partial ownership situations are allocated.
F18: The following information is not directly used in the GHG emissions calculations but is intended to provide clarification of the type of facility for which the inventory is being performed.
F19: Core Operations that might be included in the inventory are listed below | G19: Place an "X" below where appropriate to indentify operations included in the inventory
F20: Harvesting
F21: Wood/chip/bark/other raw material transportation vehicles
F22: Product, by-product or waste transportation vehicles
F23: Debarking
F24: Chipping
F25: Mechanical pulping/refining
F26: Thermal oil heaters
F27: Natural gas direct-fired dryers
F28: Other fossil fuel-fired dryers
F29: On-site power and steam boilers
F30: On-site combustion turbines
F31: Air emissions control devices (e.g., RTOs, RCOs, ESPs, etc.)
F32: Wastewater treatment operations
F33: Sludge processing
F34: Landfill receiving mill waste
F35: On-site vehicles and machinery
F36: Normal offices/workspace for mill employees
F37: Imports of electrical power
F38: Imports of steam or hot water
F39: Exports of electrical power
F40: Exports of steam or hot water
F41: Other Operation – describe:
F42: Other Operation – describe:
F43: Other Operation – describe:
F44: Other Operation – describe:

Sheet Direct - Fuel Combust.
C3: Direct Emissions - Stationary Fuel Combustion, (including methane and nitrous oxide emissions from biomass fuels)
C4: Note: Emissions from mobile sources are reported on the "Direct - Mobile & Transportation" spreadsheet immediately behind this spreadsheet
B6: EXPLANATION OF CELL COLOR SCHEME
B7: User entry
B8: Calculated value
B11: Direct Emissions - Stationary Fuel Combustion
E12: Step 1 | F12: Step 2 | I12: Step 3
E13: A | F13: B | G13: C | H13: D | I13: E | J13: F | K13: G | L13: H
E14: Quantity of fuel burned | F14: CO2 emission factor [Emission factors from IPCC are shown below] | G14: CH4 emission factor [Emission factors from IPCC are shown below] | H14: N2O emission factor [Emission factors from IPCC are shown below] | I14: CO2 emissions in metric tonnes | J14: CH4 emissions in metric tonnes | K14: N2O emissions in metric tonnes | L14: Total emissions in terms of CO2 equivalents (metric tonnes)
E15: (MMBtu HHV) | F15: (lb CO2/MMBtu HHV) | G15: (lb CH4/MMBtu HHV) | H15: (lb N2O/MMBtu HHV)
F16: IMPORTANT! For equations to function correctly, numerator of emission factors must be in terms of lb of GHG and denominator must match units of fuel quantity!! | I16: E = A * B / 2205 | J16: F = A * C / 2205 | K16: G = A * D / 2205 | L16: H = E + (F*GWP_CH4) + (G*GWP_N2O)
C17: Example: Source 1 | D17: Natural gas | E17: 100000 | F17: 117 | G17: 0.0029 | H17: 0.0002 | I17: =$E17*F17/2205 -> 5306.122449 | J17: =$E17*G17/2205 -> 0.1315192744 | K17: =$E17*H17/2205 -> 0.009070294785 | L17: =I17+(J17*GWP_CH4)+(K17*GWP_N2O) -> 5312.268027
C18: Source description | D18: Fuel type
I19: =$E19*F19/2205 -> 0 | J19: =$E19*G19/2205 -> 0 | K19: =$E19*H19/2205 -> 0 | L19: =I19+(J19*GWP_CH4)+(K19*GWP_N2O) -> 0
I20: =$E20*F20/2205 -> 0 | J20: 0 | K20: 0 | L20: 0
I21: 0 | J21: 0 | K21: 0 | L21: 0
I22: 0 | J22: 0 | K22: 0 | L22: 0
I23: 0 | J23: 0 | K23: 0 | L23: 0
I24: 0 | J24: 0 | K24: 0 | L24: 0
I25: 0 | J25: 0 | K25: 0 | L25: 0
I26: 0 | J26: 0 | K26: 0 | L26: 0
I27: 0 | J27: 0 | K27: 0 | L27: 0
I28: 0 | J28: 0 | K28: 0 | L28: 0
I29: 0 | J29: 0 | K29: 0 | L29: 0
I30: 0 | J30: 0 | K30: 0 | L30: 0
I31: 0 | J31: 0 | K31: 0 | L31: 0
I32: 0 | J32: 0 | K32: 0 | L32: 0
I33: CO2 | J33: CH4 | K33: N2O | L33: CO2 Equivalents
G34: Step 4: Sum GHG emissions: | I34: =SUM(I19:I32) -> 0 | J34: =SUM(J19:J32) -> 0 | K34: =SUM(K19:K32) -> 0 | L34: =SUM(L19:L32) -> 0 | M34: metric tonnes
D39: Emission factors for stationary sources from IPCC CO2 factors are Tier 1, CH4 and N2O factors are Tier 2 unless noted otherwise (corrected for unoxidized carbon unless noted otherwise)
C41: Fuel type | D41: lb CO2 / MMBtu fuel* [based on higher heating value, gross calorific value] | E41: lb CH4 / MMBtu fuel [based on higher heating value, gross calorific value] | F41: lb N2O / MMBtu fuel [based on higher heating value, gross calorific value] | G41: lb CO2 equiv. / MMBtu fuel* [based on higher heating value, gross calorific value] | H41: Notes
C42: Liquid fossil
C43: Kerosene | D43: 157 | G43: =D43+GWP_CH4*E43+GWP_N2O*F43 -> 157 | H43: IPCC does not provide CH4 or N2O emission factors
C44: Distillate fuel in boilers (No.1, No.2, No.4 fuel oil and diesel) | D44: 162 | E44: 0.0004 | F44: 0.0009 | G44: =D44+GWP_CH4*E44+GWP_N2O*F44 -> 162.25686
C45: Residual fuel oil in boilers (No.5, No.6 fuel oil) | D45: 169 | E45: 0.007 | F45: 0.0007 | G45: =D45+GWP_CH4*E45+GWP_N2O*F45 -> 169.3864
C46: LPG | D46: 138 | G46: =D46+GWP_CH4*E46+GWP_N2O*F46 -> 138 | H46: IPCC does not provide CH4 or N2O emission factors
C47: Gaseous fossil
C48: Natural gas (dry) - boilers and IR dryers | D48: 117 | E48: 0.0029 | F48: 0.0002 | G48: =D48+GWP_CH4*E48+GWP_N2O*F48 -> 117.13551 | H48: N2O factor is Tier 1
C49: Natural gas (dry) - turbines | D49: 117 | E49: 0.001 | F49: 0.0002 | G49: 117.0825 | H49: N2O factor is Tier 1
C50: Natural gas (dry) - Int. Comb. Engine 2 - cycle lean burn | D50: 117 | E50: 0.036 | F50: 0.0002 | G50: 118.059 | H50: N2O factor is Tier 1
C51: Natural gas (dry) - Int. Comb. Engine 4 - cycle lean burn | D51: 117 | E51: 0.027 | F51: 0.0002 | G51: 117.8079 | H51: N2O factor is Tier 1
C52: Natural gas (dry) - Int. Comb. Engine 4 - cycle rich burn | D52: 117 | E52: 0.0061 | F52: 0.0002 | G52: 117.22479 | H52: N2O factor is Tier 1
C53: Natural Gas Other Combustion Devices | D53: 117 | E53: 0.01 | F53: 0.0002 | G53: 117.3336 | H53: CH4 and N2O factors are Tier 1
C54: Propane** | D54: 139 (USDOE 2003) | G54: 139 (USDOE 2003) | H54: USDOE does not provide CH4 nor N2O emission factors
C55: Solid fossil
C56: Anthracite | D56: 213 | E56: 0.02 | F56: 0.0031 | G56: =D56+GWP_CH4*E56+GWP_N2O*F56 -> 214.4043 | H56: CH4 and N2O factors are Tier 1
C57: Bituminous coal Overfeed stoker boiler | D57: 205 | E57: 0.002 | F57: 0.0035 | G57: 206.0113
C58: Bituminous coal Underfeed stoker boiler | D58: 205 | E58: 0.031 | F58: 0.0035 | G58: 206.8204
C59: Bituminous coal - Pulverized Dry bottom, wall fired | D59: 205 | E59: 0.0015 | F59: 0.0035 | G59: 205.99735
C60: Bituminous coal - Pulverized Dry bottom, tangential firing | D60: 205 | E60: 0.0015 | F60: 0.001 | G60: 205.31485
C61: Bituminous coal - Pulverized Wet bottom | D61: 205 | E61: 0.002 | F61: 0.0035 | G61: 206.0113
C62: Bituminous coal Spreader stoker boiler | D62: 205 | E62: 0.002 | F62: 0.0035 | G62: 206.0113
C63: Bituminous coal - fluidized bed Circulating or bubbling | D63: 205 | E63: 0.002 | F63: 0.21 | G63: 262.3858
C64: Sub-bituminous coal Overfeed stoker boiler | D64: 208 | E64: 0.002 | F64: 0.0035 | G64: 209.0113
C65: Sub-bituminous coal Underfeed stoker boiler | D65: 208 | E65: 0.031 | F65: 0.0035 | G65: 209.8204
C66: Sub-bituminous coal - fluidized bed Circulating or bubbling | D66: 208 | E66: 0.002 | F66: 0.21 | G66: 265.3858
C67: Lignite | D67: 219 | E67: 0.02 | F67: 0.0031 | G67: 220.4043 | H67: CH4 and N2O factors are Tier 1
C68: Peat (CH4 and N2O factors are from biomass boilers) | D68: 232 | E68: 0.027 | F68: 0.009 | G68: 235.2103 | H68: Median values determined from a data set originating from a variety of sources, see Table 6, Section 9.2 of Calculation Tools for Estimating Greenhouse Gas Emissions from Wood Products Manufacturing Facilities.
C69: Biofuels
C70: Wood and wood waste | D70: Should not be included in GHG inventory. See Spreadsheet on "Supporting Info. On Biomass" | E70: 0.027 | F70: 0.009 | G70: =GWP_CH4*E70+GWP_N2O*F70 -> 3.2103 | H70: Median values determined from a data set originating from a variety of sources, see Table 6, Section 9.2 of Calculation Tools for Estimating Greenhouse Gas Emissions from Wood Products Manufacturing Facilities.
C71: Resinated Wood Residuals | D71: CO2 produced from burning the resin in resinated wood residuals may be considered a greenhouse gas. More information, including methods to estimate these emissions, are in Section 8.1.1 of the GHG Calculation Tools Report | E71: 0.027 | F71: 0.009 | G71: =GWP_CH4*E71+GWP_N2O*F71 -> 3.2103 | H71: Median values determined from a data set originating from a variety of sources, see Table 6, Section 9.2 of Calculation Tools for Estimating Greenhouse Gas Emissions from Wood Products Manufacturing Facilities.
C72: * Includes a 2% correction (coal), 1% correction (petroleum products), or 0.5% correction (natural gas) for unoxidized carbon
C73: ** Not corrected for unoxidized carbon
C75: Sources: | D75: Unless noted otherwise, all emission factors are from: Intergovernmental Panel on Climate Change (IPCC). 1997. Revised 1996 IPCC guidelines for national greenhouse gas inventories: Reference manual (volume 3). IPCC National Greenhouse Gas Inventory Program. http://www.ipcc-nggip.iges.or.jp/public/gl/invs6.htm ( as of 2 July 2003). Converted from a LHV basis to a HHV basis using relations described in the report Calculation Tools for Estimating Greenhouse Gas Emissions from Wood Products Maufacturing Facilities
D77: United States Department of Energy (USDOE). 2003. Instructions for Form EIA-1605 Voluntary Reporting of Greenhouse Gases For Data Through 2002. Appendix B, Table B1. U.S. Department of Energy Voluntary Reporting of Greenhouse Gases Energy Information Administration. http://www.eia.doe.gov/pub/oiaf/1605/cdrom/pdf/1605INST02.pdf (14 Nov. 2003)

Sheet Mobile & Transportation
C1: Direct or Indirect - Mobile and Transportation Source Emissions
C2: Note: Emissions from stationary sources are reported on the "Direct-Fuel Combust." spreadsheet immediately in front of this spreadsheet
C5: This worksheet can be used to calculate emissions from mobile combustion sources, including transportation. The worksheet contains two parts: Part 1 is used to calculate transportation emissions based on quantity of fuels consumed. Part 2 is used to calculate emissions from non-transportation mobile sources such as harvesting equipment. Avoid double counting! If transportation emissions for a fleet are estimated using Part 1, do not also estimate emissions for this same fleet using Part 2. Do not include any combustion sources on this page that were already addressed in the "Direct - Fuel Combust." sheet.
B7: EXPLANATION OF CELL COLOR SCHEME
B8: User entry
B9: Calculated value
B14: Part 1. Transportation Emissions Calculated from Fuel Used: All Modes of Transport | P14: =IF(AND(Q17>0,Q19>0),"Enter mpg OR l/100km, not both!","") -> 
B15: Note: Use this worksheet to calculate emissions from amount of fuel consumed. | Q15: Optional Calculator
D16: A1 | E16: A2 | F16: B | G16: C | H16: D | I16: E1 | J16: E2 | K16: F | L16: G1 | M16: G2 | N16: H1 | O16: H2 | Q16: 1000 | R16: = Distance traveled | S16: <<< enter this value
E17: Fraction of total emissions claimed as direct for this entry (between 0 and 1) | F17: Fuel used | I17: Energy used | L17: Emissions Factor | N17: Direct Emissions | O17: Indirect Emissions | Q17: 0 | R17: = miles per gallon
G18: Type of Fuel Used | I18: MMBtu per Fuel Unit | K18: MMBtu energy | L18: lb CO2 per MMBtu | N18: metric tonnes | O18: metric tonnes | R18: OR | S18: <<< enter one of these
F19: Amount of | G19: Fuel | H19: Fuel | I19: From API | J19: Custom | K19: Used | L19: From IPCC* | M19: Custom | N19: H1 =A2xFxG/2205 | O19: H2 =(1-A2)xFxG/2205 | Q19: 30 | R19: = litres per 100 km
D20: Source Description | F20: fuel used | G20: Units | H20: Type | I20: MMBtu HHV /unit | J20: MMBtu/unit | K20: F = B x E | L20: lb CO2/MMBtu HHV | M20: lb CO2/MMBtu | N20: Metric ton CO2 | O20: Metric ton CO2 | Q20: =IF(AND(Q17>0,Q19>0),"Error",IF(Q17>0,Q16/Q17,Q16/100*Q19)) -> 300 | R20: =IF(Q17>0,"Gallons used","litres used") -> litres used | S20: <<< calculated
C21: Road transportation | K21: =SUM(K23:K37) -> 0 | N21: =SUM(N23:N37) -> 0 | O21: =SUM(O23:O37) -> 0 | Q21: =IF(AND(Q17>0,Q19>0),"Enter mpg OR l/100km, not both!","") -> 
C22: Example >>> | D22: Sample fleet | E22: 0.8 | F22: 30000 | G22: US gals | H22: Gasoline | I22: 0.13 | K22: =F22*IF(J22=0,I22,J22) -> 3900 | L22: 152 | N22: =E22*K22*IF(M22=0,L22,M22)/2205 -> 215.0748299 | O22: =(1-E22)*K22*IF(M22=0,L22,M22)/2205 -> 53.76870748 | W22: Emission factors from Revised 1996 IPCC Guidelines for National Greenhouse Gas Inventories: Workbook (Volume 2), if not otherwise noted.
G23: US gals | H23: Gasoline | I23: 0.13 | K23: 0 | L23: 152 | N23: 0 | O23: 0 | W23: Higher heating values and densities from American Petroleum Institute (API), Compendium of Greenhouse Gas Emissions Estimation Methodologies for the Oil & Gas Industry (Pilot Test Version), 2001
G24: Imp. gals | H24: Gasoline | I24: 0.156 | K24: 0 | L24: 152 | N24: 0 | O24: 0
G25: litres | H25: Gasoline | I25: 0.0343 | K25: 0 | L25: 152 | N25: 0 | O25: 0
G26: litres | H26: Gasoline | I26: 0.0343 | K26: 0 | L26: 152 | N26: 0 | O26: 0 | W26: Fuel | X26: lb CO2 / MMBtu HHV* | Y26: Higher Heating Values | Z26: Typical density
G27: Metric tonnes | H27: Gasoline | I27: 46.4 | K27: 0 | L27: 152 | N27: 0 | O27: 0 | Y27: (units converted)
G28: US gals | H28: Diesel | I28: 0.137 | K28: 0 | L28: 162 | N28: 0 | O28: 0
G29: Imp. gals | H29: Diesel | I29: 0.165 | K29: 0 | L29: 162 | N29: 0 | O29: 0 | W29: Gasoline / petrol | X29: 152 | Y29: 0.130 MMBtu/gal | Z29: 6.17 lb/gal
G30: litres | H30: Diesel | I30: 0.0362 | K30: 0 | L30: 162 | N30: 0 | O30: 0 | W30: Kerosene | X30: 157 | Y30: 0.135 MMBtu/gal | Z30: 6.76 lb/gal
G31: Metric tonnes | H31: Diesel | I31: 42.6 | K31: 0 | L31: 162 | N31: 0 | O31: 0 | W31: Jet Fuel** | X31: 156 (USDOE 2003)
G32: lbs. | H32: CNG | I32: 0.0237 | K32: 0 | L32: 117 | N32: 0 | O32: 0 | W32: Aviation gasoline** | X32: 153 (USDOE 2003)
G33: kg | H33: CNG | I33: 0.0522 | K33: 0 | L33: 117 | N33: 0 | O33: 0 | W33: Diesel | X33: 162 | Y33: 0.137 MMBtu/gal | Z33: 7.10 lb/gal
G34: lbs. | H34: LPG | I34: 0.0208 | K34: 0 | L34: 138 | N34: 0 | O34: 0 | W34: Distillate fuel oil No.1 | X34: 162 | Y34: 0.140 MMBtu/gal | Z34: 7.05 lb/gal
G35: kg | H35: LPG | I35: 0.0458 | K35: 0 | L35: 138 | N35: 0 | O35: 0 | W35: Distillate fuel oil No.2 | X35: 162 | Y35: 0.140 MMBtu/gal | Z35: 7.05 lb/gal
G36: US gals | H36: LPG | I36: 0.94 | K36: 0 | L36: 138 | N36: 0 | O36: 0 | W36: Residual Fuel oil#4 | X36: 169 | Y36: 0.143 MMBtu/gal | Z36: 7.59 lb/gal
G37: litres | H37: LPG | I37: 0.0248 | K37: 0 | L37: 138 | N37: 0 | O37: 0 | W37: Residual Fuel oil#5 | X37: 169 | Y37: 0.150 MMBtu/gal | Z37: 7.93 lb/gal
C38: Rail transportation | K38: =SUM(K39:K53) -> 0 | N38: =SUM(N39:N53) -> 0 | O38: =SUM(O39:O53) -> 0 | W38: Residual Fuel oil#6 | X38: 169 | Y38: 0.153 MMBtu/gal | Z38: 8.45 lb/gal
G39: US gals | H39: Gasoline | I39: 0.13 | K39: =F39*IF(J39=0,I39,J39) -> 0 | L39: 152 | N39: =E39*K39*IF(M39=0,L39,M39)/2205 -> 0 | O39: =(1-E39)*K39*IF(M39=0,L39,M39)/2205 -> 0 | W39: LPG | X39: 138 | Y39: 0.0940 MMBtu/gal | Z39: 4.52 lb/gal (liquid)
G40: Imp. gals | H40: Gasoline | I40: 0.156 | K40: 0 | L40: 152 | N40: 0 | O40: 0 | W40: Anthracite | X40: 213 | Y40: 0.0125 MMBtu/lb
G41: litres | H41: Gasoline | I41: 0.0343 | K41: 0 | L41: 152 | N41: 0 | O41: 0 | W41: Bituminous coal | X41: 205 | Y41: 0.0135 MMBtu/lb
G42: Metric tonnes | H42: Gasoline | I42: 46.4 | K42: 0 | L42: 152 | N42: 0 | O42: 0 | W42: Propane** | X42: 139 (USDOE 2003) | Y42: 0.0905 MMBtu/gal | Z42: 4.24 lb/gal (liquid)
G43: US gals | H43: Diesel | I43: 0.137 | K43: 0 | L43: 162 | N43: 0 | O43: 0 | W43: Sub-bituminous coal | X43: 208 | Y43: 0.00874 MMBtu/lb
G44: Imp. gals | H44: Diesel | I44: 0.165 | K44: 0 | L44: 162 | N44: 0 | O44: 0 | W44: Natural gas*** | X44: 117 | Y44: 1050 Btu/ft3 | Z44: 0.042 lb/ft3
G45: litres | H45: Diesel | I45: 0.0362 | K45: 0 | L45: 162 | N45: 0 | O45: 0 | W45: *Emission factors include a 2% correction (coal), 1% correction (petroleum products), or 0.5% correction (natural gas) for unoxidized carbon
G46: Metric tonnes | H46: Diesel | I46: 42.6 | K46: 0 | L46: 162 | N46: 0 | O46: 0 | W46: ** Not corrected for unoxidized carbon
G47: US gals | H47: Residual #4 | I47: 0.143 | K47: 0 | L47: 169 | N47: 0 | O47: 0 | W47: *** Based on "standard conditions" of 60oF (15.6oC) and 1 atm pressure, per API
G48: Imp gals | H48: Residual #4 | I48: 0.172 | K48: 0 | L48: 169 | N48: 0 | O48: 0 | W48: ‡Calculated from data in Instructions for Form EIA-1605b Voluntary Reporting of Greenhouse Gases, for Data Through 2002, US Department of Energy, Energy Information Administration, Form EIA-1605 (2003), OMB No. 1905-0194, Appendix B, Page 48, available on the internet at ftp://ftp.eia.doe.gov/pub/oiaf/1605/cdrom/pdf/1605INSTR02.pdf (31 October 2003)
G49: Barrels | H49: Residual #4 | I49: 6.01 | K49: 0 | L49: 169 | N49: 0 | O49: 0
G50: Metric tonnes | H50: Residual #4 | I50: 42.2 | K50: 0 | L50: 169 | N50: 0 | O50: 0
G51: Short tons | H51: Bituminous Coal | I51: 27 | K51: 0 | L51: 205 | N51: 0 | O51: 0
G52: Metric tonnes | H52: Bituminous Coal | I52: 29.8 | K52: 0 | L52: 205 | N52: 0 | O52: 0
H53: Other fuel | K53: 0 | N53: 0 | O53: 0
C54: Water transportation | K54: =SUM(K55:K69) -> 0 | N54: =SUM(N55:N69) -> 0 | O54: =SUM(O55:O69) -> 0
G55: US gals | H55: Gasoline | I55: 0.13 | K55: =F55*IF(J55=0,I55,J55) -> 0 | L55: 152 | N55: =E55*K55*IF(M55=0,L55,M55)/2205 -> 0 | O55: =(1-E55)*K55*IF(M55=0,L55,M55)/2205 -> 0
G56: Imp. gals | H56: Gasoline | I56: 0.156 | K56: 0 | L56: 152 | N56: 0 | O56: 0
G57: litres | H57: Gasoline | I57: 0.0343 | K57: 0 | L57: 152 | N57: 0 | O57: 0
G58: Metric tonnes | H58: Gasoline | I58: 46.4 | K58: 0 | L58: 152 | N58: 0 | O58: 0
G59: US gals | H59: Diesel | I59: 0.137 | K59: 0 | L59: 162 | N59: 0 | O59: 0
G60: Imp. gals | H60: Diesel | I60: 0.165 | K60: 0 | L60: 162 | N60: 0 | O60: 0
G61: litres | H61: Diesel | I61: 0.0362 | K61: 0 | L61: 162 | N61: 0 | O61: 0
G62: Metric tonnes | H62: Diesel | I62: 42.6 | K62: 0 | L62: 162 | N62: 0 | O62: 0
G63: US gals | H63: Residual #4 | I63: 0.143 | K63: 0 | L63: 169 | N63: 0 | O63: 0
G64: Imp gals | H64: Residual #4 | I64: 0.172 | K64: 0 | L64: 169 | N64: 0 | O64: 0
G65: Barrels | H65: Residual #4 | I65: 6.01 | K65: 0 | L65: 169 | N65: 0 | O65: 0
G66: Metric tonnes | H66: Residual #4 | I66: 42.2 | K66: 0 | L66: 169 | N66: 0 | O66: 0
G67: Short tons | H67: Bituminous Coal | I67: 27 | K67: 0 | L67: 205 | N67: 0 | O67: 0
G68: Metric tonnes | H68: Bituminous Coal | I68: 29.8 | K68: 0 | L68: 205 | N68: 0 | O68: 0
H69: Other fuel | K69: 0 | N69: 0 | O69: 0
C70: Last row above totals enter no data here
C71: Total transportation emissons based on fuel use >>> | N71: =(SUM(N23:N70)+N21)/2 -> 0 | O71: =(SUM(O23:O70)+O21)/2 -> 0
C72: *Emission factor includes a 2% correction (coal), 1% correction (petroleum products), or 0.5% correction (natural gas) for unoxidized carbon
C76: Part 2. Emissions Associated with Mobile Equipment Based on Fuel Consumption
B77: Fuel Combustion in mobile devices such as harvesting equipment | Y77: Emission factors for mobile sources from IPCC
Y78: CO2 factors are Tier 1, CH4 and N2O factors are Tier 2 unless noted otherwise
E79: Step 1 | G79: Step 2 | J79: Step 3 | M79: Step 4 | Y79: (Corrected for unoxidized carbon unless noted otherwise)
E80: A1 | F80: A2 | G80: B | H80: C | I80: D | J80: E | K80: F | L80: G | M80: H | N80: I | O80: J | X80: Fuel type | Y80: lb CO2 / MMBtu fuel* [based on higher heating value] | Z80: lb CH4 / MMBtu fuel [based on higher heating value] | AA80: lb N2O / MMBtu fuel [based on higher heating value] | AB80: lb CO2 equiv. / MMBtu fuel* [based on higher heating value] | AC80: Notes
E81: Fraction of total emissions claimed as direct for this entry (between 0 and 1) | F81: Quantity of fuel burned | G81: CO2 emission factor Emission factors from IPCC are shown at right | H81: CH4 emission factor Emission factors from IPCC are shown at right | I81: N2O emission factor Emission factors from IPCC are shown at right | J81: DIRECT CO2 emissions (metric tonnes) | K81: DIRECT CH4 emissions (metric tonnes) | L81: DIRECT N2O emissions (metric tonnes) | M81: INDIRECT CO2 emissions (metric tonnes) | N81: INDIRECT CH4 emissions (metric tonnes) | O81: INDIRECT N2O emissions (metric tonnes) | X81: Liquid fossil
F82: (MMBtu HHV) | G82: (lb CO2/MMBtu HHV) | H82: (lb CH4/MMBtu HHV) | I82: (lb N2O/MMBtu HHV) | J82: E = A1 × A2 × B / 2205 | K82: F = A1 × A2 × C / 2205 | L82: E = A1 × A2 × D / 2205 | M82: H = (1-A1) × A2 × B / 2205 | N82: I = (1-A1) × A2 × C / 2205 | O82: J = (1-A1) × A2 × D / 2205 | X82: Gasoline / petrol Mobile 4-stroke engines | Y82: 152 | Z82: 0.1 | AA82: 0.004 | AB82: =Y82+GWP_CH4*Z82+GWP_N2O*AA82 -> 155.882
G83: IMPORTANT! For equations to function correctly, numerator of emission factors must be in terms of lb of GHG and denominator must match units of fuel quantity!! | X83: Gasoline / petrol Mobile 2-stroke engines, general | Y83: 152 | Z83: 0.29 | AA83: 0.0009 | AB83: =Y83+GWP_CH4*Z83+GWP_N2O*AA83 -> 160.3367
C84: Example: Source 1 | D84: Natural gas | E84: 0.75 | F84: 100000 | G84: 117 | H84: 0.01 | I84: 0.0002 | J84: =$F84*$E84*G84/2205 -> 3979.591837 | K84: =$F84*$E84*H84/2205 -> 0.3401360544 | L84: =$F84*$E84*I84/2205 -> 0.006802721088 | M84: =$F84*(1-$E84)*G84/2205 -> 1326.530612 | N84: =$F84*(1-$E84)*H84/2205 -> 0.1133786848 | O84: =$F84*(1-$E84)*I84/2205 -> 0.002267573696 | X84: Gasoline / petrol Mobile 2-stroke engines, forestry | Y84: 152 | Z84: 0.38 | AA84: 0.0009 | AB84: =Y84+GWP_CH4*Z84+GWP_N2O*AA84 -> 162.8477
C85: Source description | D85: Fuel type | X85: Kerosene | Y85: 157 | AB85: =Y85+GWP_CH4*Z85+GWP_N2O*AA85 -> 157 | AC85: IPCC does not provide CH4 nor N2O factors
J86: =$F86*$E86*G86/2205 -> 0 | K86: =$F86*$E86*H86/2205 -> 0 | L86: =$F86*$E86*I86/2205 -> 0 | M86: =$F86*(1-$E86)*G86/2205 -> 0 | N86: =$F86*(1-$E86)*H86/2205 -> 0 | O86: =$F86*(1-$E86)*I86/2205 -> 0 | X86: Jet Fuel** | Y86: 156 (USDOE 2003) | AB86: 67.2 (USDOE 2003) | AC86: USDOE does not provide CH4 nor N2O factors
J87: =$F87*$E87*G87/2205 -> 0 | K87: =$F87*$E87*H87/2205 -> 0 | L87: =$F87*$E87*I87/2205 -> 0 | M87: =$F87*(1-$E87)*G87/2205 -> 0 | N87: =$F87*(1-$E87)*H87/2205 -> 0 | O87: =$F87*(1-$E87)*I87/2205 -> 0 | X87: Aviation gasoline** | Y87: 153 (USDOE 2003) | AB87: 65.7 (USDOE 2003) | AC87: USDOE does not provide CH4 nor N2O factors
J88: 0 | K88: 0 | L88: 0 | M88: 0 | N88: 0 | O88: 0 | X88: Distillate fuel (No.1, No.2, No.4 fuel oil and diesel) Mobile sources | Y88: 162 | Z88: 0.009 | AA88: 0.066 | AB88: =Y88+GWP_CH4*Z88+GWP_N2O*AA88 -> 180.2691
J89: 0 | K89: 0 | L89: 0 | M89: 0 | N89: 0 | O89: 0 | X89: LPG | Y89: 138 | AB89: =Y89+GWP_CH4*Z89+GWP_N2O*AA89 -> 138 | AC89: IPCC does not provide CH4 nor N2O factors
J90: 0 | K90: 0 | L90: 0 | M90: 0 | N90: 0 | O90: 0 | X90: Propane** | Y90: 139 (USDOE 2003) | AB90: 59.8 (USDOE 2003) | AC90: USDOE does not provide CH4 nor N2O factors
J91: 0 | K91: 0 | L91: 0 | M91: 0 | N91: 0 | O91: 0 | X91: Gaseous fossil
J92: 0 | K92: 0 | L92: 0 | M92: 0 | N92: 0 | O92: 0 | X92: Natural gas (dry) | Y92: 117 | Z92: 0.01 | AA92: 0.0002 | AB92: =Y92+GWP_CH4*Z92+GWP_N2O*AA92 -> 117.3336 | AC92: CH4 factor is Tier 1, N2O factor is Tier 1
J93: 0 | K93: 0 | L93: 0 | M93: 0 | N93: 0 | O93: 0 | X93: *Includes a 2% correction (coal), 1% correction (petroleum products), or 0.5% correction (natural gas) for unoxidized carbon
J94: 0 | K94: 0 | L94: 0 | M94: 0 | N94: 0 | O94: 0 | X94: ** Not corrected for unoxidized carbon
J95: 0 | K95: 0 | L95: 0 | M95: 0 | N95: 0 | O95: 0
J96: 0 | K96: 0 | L96: 0 | M96: 0 | N96: 0 | O96: 0 | X96: Sources: | Y96: Unless noted otherwise, all emission factors are from: Intergovernmental Panel on Climate Change (IPCC). 1997. Revised 1996 IPCC guidelines for national greenhouse gas inventories: Reference manual (volume 3). IPCC National Greenhouse Gas Inventory Program. http://www.ipcc-nggip.iges.or.jp/public/gl/invs6.htm ( as of 2 July 2003). Converted from a LHV basis to a HHV basis using relations described in the report Calculation Tools for Estimating Greenhouse Gas Emissions from Wood Products Maufacturing Facilities
J97: 0 | K97: 0 | L97: 0 | M97: 0 | N97: 0 | O97: 0
J98: 0 | K98: 0 | L98: 0 | M98: 0 | N98: 0 | O98: 0
J99: 0 | K99: 0 | L99: 0 | M99: 0 | N99: 0 | O99: 0
J100: DIRECT EMISSIONS | M100: INDIRECT EMISSIONS | Y100: United States Department of Energy (USDOE). 2003. Instructions for Form EIA-1605 Voluntary Reporting of Greenhouse Gases For Data Through 2002. Appendix B, Table B1. U.S. Department of Energy Voluntary Reporting of Greenhouse Gases Energy Information Administration. http://www.eia.doe.gov/pub/oiaf/1605/cdrom/pdf/1605INST02.pdf (14 Nov. 2003)
J101: tonnes CO2 | K101: tonnes CH4 | L101: tonnes N2O | M101: tonnes CO2 | N101: tonnes CH4 | O101: tonnes N2O
G102: Total emissions from mobile equipment: | J102: =SUM(J86:J99) -> 0 | K102: 0 | L102: 0 | M102: 0 | N102: 0 | O102: 0
I107: DIRECT EMISSIONS | L107: INDIRECT EMISSIONS
I108: tonnes CO2 | J108: tonnes CH4 | K108: tonnes N2O | L108: tonnes CO2 | M108: tonnes CH4 | N108: tonnes N2O
H109: Grand Total of all Mobil and Transportation Emissions (sum of results from Parts 1 and 2): | I109: =SUM(N71,J102) -> 0 | J109: =K102 -> 0 | K109: =L102 -> 0 | L109: =SUM(O71,M102) -> 0 | M109: =N102 -> 0 | N109: =O102 -> 0
H110: Note: Do not double count emissions by estimating the same fuel consumption by two different methods above.

Sheet Waste Mngmt.
C1: Direct or Indirect Emissions - Waste Management
C2: For landfills and anaerobic wastewater treatment and sludge digestion systems
C3: Note: Scroll down the page to find the spreadsheet for anaerobic treatment systems
B7: EXPLANATION OF CELL COLOR SCHEME
B8: User entry
B9: Calculated value
C12: Note: On this sheet, Standard conditions refers to 0°C and 1 atm pressure
C13: Methane emissions from landfills Note: Use only one of the following methods for each landfill.
C14: Method 1 - For landfills with low permeability caps and effective gas recovery systems where measurements are made of amounts of gas collected IT IS IMPORTANT TO NOT ESTIMATE EMISSIONS FOR A SINGLE LANDFILL BY MORE THAN ONE METHOD TO AVOID DOUBLE COUNTING!
E16: Step 1
E17: A1 | F17: A2 | G17: B | H17: C | I17: D | J17: E | K17: F | L17: G | M17: H1 | N17: H2
E18: Fraction of total emissions claimed as direct for this entry (between 0 and 1) | F18: Quantity of gas collected [dry standard cubic feet/yr] | G18: Efficiency of gas collection system [default = 0.75] | H18: Fraction of collected gas that is burned [default = 1.0] | I18: Methane content of gas [default = 0.5] | J18: Fraction of uncollected methane that oxidizes in the landfill cover [default = 0.1] | K18: Quantity of methane released [dry standard cubic feet/yr] | L18: Methane emissions in metric tons | M18: Direct Methane emissions in metric tonnes | N18: Indirect Methane emissions in metric tonnes
K19: F=((A2/B)*(1-B)*D*(1-E))+(A*D*(1-C)) | L19: G = F * [0.042 lb/standard cubic foot] / [2205 lb/tonne] | M19: H1 = A1 * G | N19: H2 = (1-A1) * G
C20: Example: Landfill A | D20: Mill sludge, ash and misc. | E20: 0.5 | F20: 29000000 | G20: 0.75 | H20: 0.9 | I20: 0.47 | J20: 0.1 | K20: =((F20/G20)*(1-G20)*I20*(1-J20))+(F20*I20*(1-H20)) -> 5452000 | L20: =K20*0.042/2205 -> 103.847619 | M20: =E20*L20 -> 51.92380952 | N20: =(1-E20)*L20 -> 51.92380952
C21: Landfill description | D21: Waste type
K22: =IF(G22=0,0,((F22/G22)*(1-G22)*I22*(1-J22))+(F22*I22*(1-H22))) -> 0 | L22: =K22*0.042/2205 -> 0 | M22: =E22*L22 -> 0 | N22: =(1-E22)*L22 -> 0
K23: =IF(G23=0,0,((F23/G23)*(1-G23)*I23*(1-J23))+(F23*I23*(1-H23))) -> 0 | L23: =K23*0.042/2205 -> 0 | M23: =E23*L23 -> 0 | N23: =(1-E23)*L23 -> 0
K24: =IF(G24=0,0,((F24/G24)*(1-G24)*I24*(1-J24))+(F24*I24*(1-H24))) -> 0 | L24: =K24*0.042/2205 -> 0 | M24: =E24*L24 -> 0 | N24: =(1-E24)*L24 -> 0
K25: =IF(G25=0,0,((F25/G25)*(1-G25)*I25*(1-J25))+(F25*I25*(1-H25))) -> 0 | L25: =K25*0.042/2205 -> 0 | M25: =E25*L25 -> 0 | N25: =(1-E25)*L25 -> 0
K26: =IF(G26=0,0,((F26/G26)*(1-G26)*I26*(1-J26))+(F26*I26*(1-H26))) -> 0 | L26: =K26*0.042/2205 -> 0 | M26: =E26*L26 -> 0 | N26: =(1-E26)*L26 -> 0
I28: Step 2: Sum mill landfill methane emissions from Method 1: | M28: =SUM(M22:M26) -> 0 | N28: =SUM(N22:N26) -> 0 | O28: metric tonnes CH4
C29: Method 2 - For landfills that cannot use Method 1.
C30: Method 2 is applicable to landfills where the amounts of waste deposited are reasonably constant from year-to-year and the landfill design has not been changed in ways that would substantially alter landfill gas releases. IT IS IMPORTANT TO NOT ESTIMATE EMISSIONS FOR A SINGLE LANDFILL BY MORE THAN ONE METHOD TO AVOID DOUBLE COUNTING!
E32: Step 1 | L32: Step 2
E33: A1 | F33: A2 | G33: B | H33: C | I33: D | J33: E | K33: F | L33: G | M33: H | N33: I | O33: J | P33: K | Q33: L1 | R33: L2
E34: Fraction of total emissions claimed as direct for this entry (between 0 and 1) | F34: Annual waste deposits [Dry short tons / year] | G34: Ultimate Methane Potential, Lo, in cubic feet methane per dry short ton waste [default for mill waste = 3200 ft3/dry ton] | H34: First order methane generation rate constant, k [default for mill waste = 0.03 per year | I34: Years since landfill opened | J34: Years since landfill stopped receiving waste | K34: Quantity of methane generated [dry standard cubic feet/yr] | L34: Fraction of uncollected methane that oxidizes in the landfill cover [default = 0.1] | M34: Fraction of landfill gas that is collected | N34: Fraction of collected landfill gas that is burned | O34: Methane emissions in cubic feet per year | P34: Methane emissions in metric tons | Q34: Direct Methane emissions in metric tonnes | R34: Indirect Methane emissions in metric tonnes
K35: F = A2 * B * (e^(-k*E) - e^(-k*D)) | O35: J = (F*(1-H)*(1-G))+(F*H*(1-I)) | P35: K = J * [0.045 lb/standard cubic foot] / [2205 lb/tonne] | Q35: L1 = A1 * K | R35: L2 = (1-A1) * K
C36: Example: Landfill A | D36: Mill sludge, ash and misc. | E36: 0.7 | F36: 19300 | G36: 3200 | H36: 0.03 | I36: 20 | J36: 0 | K36: =F36*G36*(EXP(-H36*J36)-EXP(-H36*I36)) -> 27865393.35 | L36: 0.1 | M36: 0 | N36: 0 | O36: =(K36*(1-M36)*(1-L36))+(K36*M36*(1-N36)) -> 25078854.02 | P36: =O36*0.045/2205 -> 511.8133473 | Q36: =E36*P36 -> 358.2693431 | R36: =(1-E36)*P36 -> 153.5440042
C37: Landfill description | D37: Waste type
K38: =F38*G38*(EXP(-H38*J38)-EXP(-H38*I38)) -> 0 | O38: =(K38*(1-M38)*(1-L38))+(K38*M38*(1-N38)) -> 0 | P38: =O38*0.045/2205 -> 0 | Q38: =E38*P38 -> 0 | R38: =(1-E38)*P38 -> 0
K39: =F39*G39*(EXP(-H39*J39)-EXP(-H39*I39)) -> 0 | O39: =(K39*(1-M39)*(1-L39))+(K39*M39*(1-N39)) -> 0 | P39: =O39*0.045/2205 -> 0 | Q39: =E39*P39 -> 0 | R39: =(1-E39)*P39 -> 0
K40: =F40*G40*(EXP(-H40*J40)-EXP(-H40*I40)) -> 0 | O40: =(K40*(1-M40)*(1-L40))+(K40*M40*(1-N40)) -> 0 | P40: =O40*0.045/2205 -> 0 | Q40: =E40*P40 -> 0 | R40: =(1-E40)*P40 -> 0
K41: =F41*G41*(EXP(-H41*J41)-EXP(-H41*I41)) -> 0 | O41: =(K41*(1-M41)*(1-L41))+(K41*M41*(1-N41)) -> 0 | P41: =O41*0.045/2205 -> 0 | Q41: =E41*P41 -> 0 | R41: =(1-E41)*P41 -> 0
K42: =F42*G42*(EXP(-H42*J42)-EXP(-H42*I42)) -> 0 | O42: =(K42*(1-M42)*(1-L42))+(K42*M42*(1-N42)) -> 0 | P42: =O42*0.045/2205 -> 0 | Q42: =E42*P42 -> 0 | R42: =(1-E42)*P42 -> 0
Q43: Direct | R43: Indirect
K44: Step 3: Sum mill landfill methane emissions from Method 2: | Q44: =SUM(Q38:Q42) -> 0 | R44: =SUM(R38:R42) -> 0 | S44: metric tonnes CH4
Q45: Direct | R45: Indirect
C46: Sum of emissions from landfills >> | K46: Sum of mill landfill methane emissions from Methods 1, 2 & 3: | Q46: =IF(OR(G55="Invalid Year",ISERROR(G55)),+M28+Q44,+M28+Q44+G55) -> 0 | R46: =IF(OR(G55="Invalid Year",ISERROR(G55)),+N28+R44,+N28+R44+G56) -> 0 | S46: metric tonnes CH4
C48: Method 3 - For landfills that cannot use Methods 1 or 2.
C49: Method 3 is applicable to landfills where the amounts of waste deposited vary substantially from year-to-year and the landfill design has changed in ways that would substantially alter landfill gas releases. This table for Method 3 can only estimate emissions from a single landfill. If emissions from multiple landfills are to be estimated, make a separate copy of this Excel worksheet for each additional landfill to be considered. In this case, the user will have to manually sum all landfill emission estimates and enter this value in the appropriate cell of the "Summary Table" worksheet.
C50: Landfill description | D50: Waste type | E50: Fraction of total emissions claimed as direct for this entry (between 0 and 1)
C52: First year that material was deposited in landfill (or that data is available):
C53: Last year that material was deposited in landfill (or that data is available):
C54: Year of interest for emission estimate:
C55: Estimated Direct Emissions [metric tonnes CH4]: | G55: =IF(G54>=G52,IF(ISERROR(LOOKUP(G54,H57:BE57,H59:BE59)),0,E51*LOOKUP(G54,H57:BE57,H59:BE59)),"Invalid Year") -> 0 | H55: metric tonnes CH4
C56: Estimated Indirect Emissions [metric tonnes CH4]: | G56: =IF(G54>=G52,IF(ISERROR(LOOKUP(G54,H57:BE57,H59:BE59)),0,(1-E51)*LOOKUP(G54,H57:BE57,H59:BE59)),"Invalid Year") -> 0 | H56: metric tonnes CH4
G57: Year Emissions Estimated | H57: =+IF(G52="","",G52) ->  | I57: =+IF(ISERROR(AND(H57+1>$G53,H57+1>$G54)),"",IF((AND(H57+1>$G53,H57+1>$G54)),"",H57+1)) ->  | J57: =+IF(ISERROR(AND(I57+1>$G53,I57+1>$G54)),"",IF((AND(I57+1>$G53,I57+1>$G54)),"",I57+1)) -> 
G58: Methane emissions in metric tons CO2 equivalents | H58: =IF(ISERROR(H59*GWP_CH4),"",H59*GWP_CH4) -> 0 | I58: 0 | J58: 0 | K58: 0 | L58: 0 | M58: 0 | N58: 0 | O58: 0 | P58: 0 | Q58: 0 | R58: 0 | S58: 0 | T58: 0 | U58: 0 | V58: 0 | W58: 0 | X58: 0 | Y58: 0 | Z58: 0 | AA58: 0 | AB58: 0 | AC58: 0 | AD58: 0 | AE58: 0 | AF58: 0 | AG58: 0 | AH58: 0 | AI58: 0 | AJ58: 0 | AK58: 0 | AL58: 0 | AM58: 0 | AN58: =IF(ISERROR(AN59*GWP_CH4),"",AN59*GWP_CH4) -> 0 | AO58: 0 | AP58: 0 | AQ58: 0 | AR58: 0 | AS58: 0 | AT58: 0 | AU58: 0 | AV58: 0 | AW58: 0 | AX58: 0 | AY58: 0 | AZ58: 0 | BA58: 0 | BB58: 0 | BC58: 0 | BD58: 0 | BE58: 0
G59: Methane emissions in metric tons | H59: =IF(ISERROR(H60*0.045/2205),"",H60*0.045/2205) -> 0 | I59: =IF(ISERROR(I60*0.045/2205),"",I60*0.045/2205) -> 0 | J59: 0 | K59: 0 | L59: 0 | M59: 0 | N59: 0 | O59: 0 | P59: 0 | Q59: 0 | R59: 0 | S59: 0 | T59: 0 | U59: 0 | V59: 0 | W59: 0 | X59: 0 | Y59: 0 | Z59: 0 | AA59: 0 | AB59: 0 | AC59: 0 | AD59: 0 | AE59: 0 | AF59: 0 | AG59: 0 | AH59: 0 | AI59: 0 | AJ59: 0 | AK59: 0 | AL59: 0 | AM59: 0 | AN59: 0 | AO59: 0 | AP59: 0 | AQ59: 0 | AR59: 0 | AS59: 0 | AT59: 0 | AU59: 0 | AV59: 0 | AW59: 0 | AX59: 0 | AY59: 0 | AZ59: 0 | BA59: 0 | BB59: 0 | BC59: 0 | BD59: 0 | BE59: 0
G60: Methane emissions in cubic feet per year | H60: =IF(ISERROR(H61*((1-H63)*(1-H62)+(H63*(1-H64)))),"",H61*((1-H63)*(1-H62)+(H63*(1-H64)))) -> 0 | I60: =IF(ISERROR(I61*((1-I63)*(1-I62)+(I63*(1-I64)))),"",I61*((1-I63)*(1-I62)+(I63*(1-I64)))) -> 0 | J60: 0 | K60: 0 | L60: 0 | M60: 0 | N60: 0 | O60: 0 | P60: 0 | Q60: 0 | R60: 0 | S60: 0 | T60: 0 | U60: 0 | V60: 0 | W60: 0 | X60: 0 | Y60: 0 | Z60: 0 | AA60: 0 | AB60: 0 | AC60: 0 | AD60: 0 | AE60: 0 | AF60: 0 | AG60: 0 | AH60: 0 | AI60: 0 | AJ60: 0 | AK60: 0 | AL60: 0 | AM60: 0 | AN60: 0 | AO60: 0 | AP60: 0 | AQ60: 0 | AR60: 0 | AS60: 0 | AT60: 0 | AU60: 0 | AV60: 0 | AW60: 0 | AX60: 0 | AY60: 0 | AZ60: 0 | BA60: 0 | BB60: 0 | BC60: 0 | BD60: 0 | BE60: 0
G61: Quantity of methane generated [dry standard cubic feet/yr] | H61: =IF(ISERROR(SUM(H$65:H$114)),"",SUM(H$65:H$114)) -> 0 | I61: =IF(ISERROR(SUM(I$65:I$114)),"",SUM(I$65:I$114)) -> 0 | J61: 0 | K61: 0 | L61: 0 | M61: 0 | N61: 0 | O61: 0 | P61: 0 | Q61: 0 | R61: 0 | S61: 0 | T61: 0 | U61: 0 | V61: 0 | W61: 0 | X61: 0 | Y61: 0 | Z61: 0 | AA61: 0 | AB61: 0 | AC61: 0 | AD61: 0 | AE61: 0 | AF61: 0 | AG61: 0 | AH61: 0 | AI61: 0 | AJ61: 0 | AK61: 0 | AL61: 0 | AM61: 0 | AN61: 0 | AO61: 0 | AP61: 0 | AQ61: 0 | AR61: 0 | AS61: 0 | AT61: 0 | AU61: 0 | AV61: 0 | AW61: 0 | AX61: 0 | AY61: 0 | AZ61: 0 | BA61: 0 | BB61: 0 | BC61: 0 | BD61: 0 | BE61: 0
D62: Data for Method 3 - Landfills | G62: Fraction of uncollected methane that oxidizes in the landfill cover [default = 0.1]
G63: Fraction of landfill gas that is collected
C64: Year of Placement (auto-calculated from information entered above in cells G54 and G55) | D64: Quantity Placed [Wet short tons] | E64: Ultimate Methane Potential, Lo, [default for mill waste Lo =3500 ft3/wet short ton] | F64: First order methane generation rate constant, k [default for mill waste k = 0.03/yr] | G64: Fraction of collected landfill gas that is burned
C65: =+IF(H$57<=$G$53,H$57,"") ->  | I65: =IF(ISERROR($F65*$E65*EXP(-$F65*(I$57-$C65))*$D65),"",$F65*$E65*EXP(-$F65*(I$57-$C65))*$D65) ->  | J65: =IF(ISERROR($F65*$E65*EXP(-$F65*(J$57-$C65))*$D65),"",$F65*$E65*EXP(-$F65*(J$57-$C65))*$D65) -> 
C66: =+IF(I$57<=$G$53,I$57,"") ->  | AE66: =IF(ISERROR($F66*$E66*EXP(-$F66*(AE$57-$C66))*$D66),"",$F66*$E66*EXP(-$F66*(AE$57-$C66))*$D66) ->  | AQ66: =IF(ISERROR($F66*$E66*EXP(-$F66*(AQ$57-$C66))*$D66),"",$F66*$E66*EXP(-$F66*(AQ$57-$C66))*$D66) ->  | AY66: =IF(ISERROR($F66*$E66*EXP(-$F66*(AY$57-$C66))*$D66),"",$F66*$E66*EXP(-$F66*(AY$57-$C66))*$D66) -> 
C67: =+IF(J$57<=$G$53,J$57,"") -> 
C68: =+IF(K$57<=$G$53,K$57,"") -> 
C69: =+IF(L$57<=$G$53,L$57,"") ->  | BE69: =IF(ISERROR($F69*$E69*EXP(-$F69*(BE$57-$C69))*$D69),"",$F69*$E69*EXP(-$F69*(BE$57-$C69))*$D69) -> 
C70: =+IF(M$57<=$G$53,M$57,"") -> 
C71: =+IF(N$57<=$G$53,N$57,"") -> 
C72: =+IF(O$57<=$G$53,O$57,"") -> 
C73: =+IF(P$57<=$G$53,P$57,"") -> 
C74: =+IF(Q$57<=$G$53,Q$57,"") -> 
C75: =+IF(R$57<=$G$53,R$57,"") -> 
C76: =+IF(S$57<=$G$53,S$57,"") -> 
C77: =+IF(T$57<=$G$53,T$57,"") -> 
C78: =+IF(U$57<=$G$53,U$57,"") ->  | AD78: =IF(ISERROR($F78*$E78*EXP(-$F78*(AD$57-$C78))*$D78),"",$F78*$E78*EXP(-$F78*(AD$57-$C78))*$D78) -> 
C79: =+IF(V$57<=$G$53,V$57,"") ->  | AP79: =IF(ISERROR($F79*$E79*EXP(-$F79*(AP$57-$C79))*$D79),"",$F79*$E79*EXP(-$F79*(AP$57-$C79))*$D79) -> 
C80: =+IF(W$57<=$G$53,W$57,"") -> 
C81: =+IF(X$57<=$G$53,X$57,"") ->  | Y81: =IF(ISERROR($F81*$E81*EXP(-$F81*(Y$57-$C81))*$D81),"",$F81*$E81*EXP(-$F81*(Y$57-$C81))*$D81) -> 
C82: =+IF(Y$57<=$G$53,Y$57,"") -> 
C83: =+IF(Z$57<=$G$53,Z$57,"") ->  | AX83: =IF(ISERROR($F83*$E83*EXP(-$F83*(AX$57-$C83))*$D83),"",$F83*$E83*EXP(-$F83*(AX$57-$C83))*$D83) -> 
C84: =+IF(AA$57<=$G$53,AA$57,"") -> 
C85: =+IF(AB$57<=$G$53,AB$57,"") -> 
C86: =+IF(AC$57<=$G$53,AC$57,"") -> 
C87: =+IF(AD$57<=$G$53,AD$57,"") -> 
C88: =+IF(AE$57<=$G$53,AE$57,"") ->  | AF88: =IF(ISERROR($F88*$E88*EXP(-$F88*(AF$57-$C88))*$D88),"",$F88*$E88*EXP(-$F88*(AF$57-$C88))*$D88) -> 
C89: =+IF(AF$57<=$G$53,AF$57,"") -> 
C90: =+IF(AG$57<=$G$53,AG$57,"") -> 
C91: =+IF(AH$57<=$G$53,AH$57,"") -> 
C92: =+IF(AI$57<=$G$53,AI$57,"") -> 
C93: =+IF(AJ$57<=$G$53,AJ$57,"") -> 
C94: =+IF(AK$57<=$G$53,AK$57,"") -> 
C95: =+IF(AL$57<=$G$53,AL$57,"") -> 
C96: =+IF(AM$57<=$G$53,AM$57,"") -> 
C97: =+IF(AN$57<=$G$53,AN$57,"") -> 
C98: =+IF(AO$57<=$G$53,AO$57,"") -> 
C99: =+IF(AP$57<=$G$53,AP$57,"") -> 
C100: =+IF(AQ$57<=$G$53,AQ$57,"") ->  | AR100: =IF(ISERROR($F100*$E100*EXP(-$F100*(AR$57-$C100))*$D100),"",$F100*$E100*EXP(-$F100*(AR$57-$C100))*$D100) -> 
C101: =+IF(AR$57<=$G$53,AR$57,"") -> 
C102: =+IF(AS$57<=$G$53,AS$57,"") -> 
C103: =+IF(AT$57<=$G$53,AT$57,"") -> 
C104: =+IF(AU$57<=$G$53,AU$57,"") -> 
C105: =+IF(AV$57<=$G$53,AV$57,"") -> 
C106: =+IF(AW$57<=$G$53,AW$57,"") -> 
C107: =+IF(AX$57<=$G$53,AX$57,"") -> 
C108: =+IF(AY$57<=$G$53,AY$57,"") ->  | AZ108: =IF(ISERROR($F108*$E108*EXP(-$F108*(AZ$57-$C108))*$D108),"",$F108*$E108*EXP(-$F108*(AZ$57-$C108))*$D108) -> 
C109: =+IF(AZ$57<=$G$53,AZ$57,"") -> 
C110: =+IF(BA$57<=$G$53,BA$57,"") -> 
C111: =+IF(BB$57<=$G$53,BB$57,"") -> 
C112: =+IF(BC$57<=$G$53,BC$57,"") -> 
C113: =+IF(BD$57<=$G$53,BD$57,"") -> 
C114: =+IF(BE$57<=$G$53,BE$57,"") -> 
C123: Methane emissions from anaerobic wastewater treatment or sludge digestion systems Note: Use only one of the following methods for each source.
C124: Method 1 - For anaerobic wastewater treatment and sludge digestion systems where gas is collected
C125: NOTE: If the gas collection system is highly efficient and all gas is burned, the direct GHG emissions can be assumed to be zero.
E126: Step 1
E127: A1 | F127: A2 | G127: B | H127: C | I127: D | J127: E | K127: F | L127: G1 | M127: G2
E128: Fraction of total emissions claimed as direct for this entry (between 0 and 1) | F128: Quantity of gas collected [dry standard cubic meters/yr] | G128: Efficiency of gas collection system [default = 1.0] | H128: Fraction of collected gas that is burned [default = 1.0] | I128: Methane content of gas [default = 0.5] | J128: Quantity of methane released [dry standard cubic meters/yr] | K128: Methane emissions in metric tons | L128: Direct Methane emissions in metric tonnes | M128: Indirect Methane emissions in metric tonnes
J129: E=((A/B)*(1-B)*D)+(A*D*(1-C)) | K129: F = E * [ 0.72 kg / standard cubic meter ] / 1000 | L129: G1 = A1 * F | M129: G2 = (1-A1) * F
C130: Example: System A | D130: Anaerobic treatment system | E130: 0.7 | F130: 1000 | G130: 0.9 | H130: 0.5 | I130: 0.5 | J130: =((F130/G130)*(1-G130)*I130)+(F130*I130*(1-H130)) -> 305.5555556 | K130: =J130*0.72/1000 -> 0.22 | L130: =E130*K130 -> 0.154 | M130: =(1-E130)*K130 -> 0.066
C131: System description | D131: Waste type
J132: =IF(G132=0,0,((F132/G132)*(1-G132)*I132)+(F132*I132*(1-H132))) -> 0 | K132: =J132*0.72/1000 -> 0 | L132: =E132*K132 -> 0 | M132: =(1-E132)*K132 -> 0
J133: =IF(G133=0,0,((F133/G133)*(1-G133)*I133)+(F133*I133*(1-H133))) -> 0 | K133: =J133*0.72/1000 -> 0 | L133: =E133*K133 -> 0 | M133: =(1-E133)*K133 -> 0
J134: =IF(G134=0,0,((F134/G134)*(1-G134)*I134)+(F134*I134*(1-H134))) -> 0 | K134: =J134*0.72/1000 -> 0 | L134: =E134*K134 -> 0 | M134: =(1-E134)*K134 -> 0
J135: =IF(G135=0,0,((F135/G135)*(1-G135)*I135)+(F135*I135*(1-H135))) -> 0 | K135: =J135*0.72/1000 -> 0 | L135: =E135*K135 -> 0 | M135: =(1-E135)*K135 -> 0
J136: =IF(G136=0,0,((F136/G136)*(1-G136)*I136)+(F136*I136*(1-H136))) -> 0 | K136: =J136*0.72/1000 -> 0 | L136: =E136*K136 -> 0 | M136: =(1-E136)*K136 -> 0
F138: Step 2: Sum anaerobic wastewater or sludge treatment methane emissions from Method 1: | L138: =SUM(L132:L136) -> 0 | M138: =SUM(M132:M136) -> 0 | N138: metric tonnes CH4
C139: Method 2 - For anaerobic wastewater treatment and sludge digestion systems where gas is NOT collected or the collection efficiency is not known.
E141: Step 1
E142: A1 | F142: A2 | G142: B | H142: C | I142: D | J142: E | K142: F1 | L142: F2
E143: Fraction of total emissions claimed as direct for this entry (between 0 and 1) | F143: Amount of organic matter sent to treatment per year [kg BOD or COD per year] | G143: Methane emission factor [default for mill wastes = 0.25 kg methane per kg COD in the feed or 0.60 kg methane per kg BOD in the feed. Units must match column A] | H143: Amount of methane captured and burned [kg methane / yr] | I143: Quantity of methane released [kg methane / yr] | J143: Methane emissions in metric tons | K143: Direct Methane emissions in metric tonnes | L143: Indirect Methane emissions in metric tonnes
I144: D = (A * B) - C | J144: E = D / 1000 | K144: F1 = A1 * E | L144: F2 = (1-A1) * E
C145: Example: System B | D145: Anaerobic treatment system | E145: 0.7 | F145: 3000000 | G145: 0.25 | H145: 600000 | I145: =F145*G145-H145 -> 150000 | J145: =I145/1000 -> 150 | K145: =E145*J145 -> 105 | L145: =(1-E145)*J145 -> 45
C146: System description | D146: Waste type
I147: =F147*G147-H147 -> 0 | J147: =I147/1000 -> 0 | K147: =E147*J147 -> 0 | L147: =(1-E147)*J147 -> 0
I148: =F148*G148-H148 -> 0 | J148: =I148/1000 -> 0 | K148: =E148*J148 -> 0 | L148: =(1-E148)*J148 -> 0
I149: =F149*G149-H149 -> 0 | J149: =I149/1000 -> 0 | K149: =E149*J149 -> 0 | L149: =(1-E149)*J149 -> 0
I150: =F150*G150-H150 -> 0 | J150: =I150/1000 -> 0 | K150: =E150*J150 -> 0 | L150: =(1-E150)*J150 -> 0
I151: =F151*G151-H151 -> 0 | J151: =I151/1000 -> 0 | K151: =E151*J151 -> 0 | L151: =(1-E151)*J151 -> 0
E153: Step 2: Sum anaerobic wastewater or sludge treatment methane emissions from Method 2: | K153: =SUM(K147:K151) -> 0 | L153: =SUM(L147:L151) -> 0 | M153: metric tonnes CH4
C155: Sum of emissions from anaerobic wastewater treatment and sludge digestion systems >>
J156: Direct | K156: Indirect
D157: Sum anaerobic wastewater or sludge treatment methane emissions from Methods 1 and 2: | J157: =(L138+K153) -> 0 | K157: =(M138+L153) -> 0 | L157: metric tonnes CH4

Sheet CHP Allocation
D3: Combined heat and power: Allocating emissions based on the efficiency of heat and power production
D5: Note: If a facility is using all of the energy outputs of a CHP system, there is no need to allocate the emissions.
D7: EXPLANATION OF CELL COLOR SCHEME
E8: User entry
E9: Calculated value
C12: Combined heat and power: Allocating emissions based on the efficiency of heat and power production
D14: Simplified Efficiency Method: Allocation based on assumed efficiencies for both steam and power production and total CHP emissions
D16: Step 1 | E16: Step 2 | F16: Step 3 | G16: Step 4 | H16: Step 5 | K16: Step 6 | L16: Step 7 | M16: Step 8 | N16: Step 9 | O16: Step 10 | P16: Step 11 | Q16: Step 12
D17: A | E17: B | F17: C | G17: D | H17: E | K17: F | L17: G | M17: H | N17: I | O17: J | P17: K | Q17: L
D18: H Heat output (district heat, process heat, other steam) | E18: P Power output | F18: T Total Fuel input | G18: Energy Unit used in A, B, and C | H18: ET Total direct emissions from CHP facility | I18: Allowed input values for ratio of heat production efficiency to power production efficiency, eh/ep | K18: Assigned ratio of efficiencies | L18: ep (efficiency of typical power production) | M18: eh (efficiency of typical heat production) | N18: EH Emissions share allocated to heat production | O18: EP Emissions share allocated to electricity production | P18: Emission factor for heat production | Q18: Emission factor for electricity production
H19: Use methods outlined in "Direct - Fuel Combust." | I19: Minimum ratio allowed by energy balance | J19: Maximum ratio allowed by energy balance | K19: Efficiency of heat production divided by efficiency of power production (default ratio of 0.8/.35=2.29) | L19: G = ( A + B * F ) / ( C * F ) | M19: H = G * F | N19: I = E * ( A / ( A + B * F ) ) | O19: J = E - I | P19: K = I * 1000 / A | Q19: L = J * 1000 / B
D20: (GJ, BTU or kWh) | E20: (same unit as in column A) | F20: (same unit as in column A) | G20: (GJ, BTU or kWh) | H20: metric tons CO2 equiv. | K20: eh/ep | N20: metric tons CO2 equiv. | O20: metric tons CO2 equiv. | P20: kg CO2 / energy unit in D | Q20: kg CO2 / energy unit in D
C21: Example>> | D21: 1000000 | E21: 500000 | F21: 2679000 | G21: kWh | H21: 587.4 | I21: =IF(ISERROR(D21/(F21-E21)),"",D21/(F21-E21)) -> 0.4589261129 | J21: =IF(ISERROR((F21-D21)/E21),"",(F21-D21)/E21) -> 3.358 | K21: 2.3 | L21: =+IF(ISERROR((D21+K21*E21)/(F21*K21)),"",(D21+K21*E21)/(F21*K21)) -> 0.3489296785 | M21: =IF(ISERROR(K21*L21),"",K21*L21) -> 0.8025382605 | N21: =+IF(ISERROR(H21*(D21/(D21+E21*K21))),"",H21*(D21/(D21+E21*K21))) -> 273.2093023 | O21: =IF(ISERROR(H21-N21),"",H21-N21) -> 314.1906977 | P21: =IF(ISERROR(N21*1000/D21),"",N21*1000/D21) -> 0.2732093023 | Q21: =IF(ISERROR(O21*1000/E21),"",O21*1000/E21) -> 0.6283813953
I22: =IF(ISERROR(D22/(F22-E22)),"",D22/(F22-E22)) ->  | J22: =IF(ISERROR((F22-D22)/E22),"",(F22-D22)/E22) -> 
B23: Purchased steam | I23: =IF(ISERROR(D23/(F23-E23)),"",D23/(F23-E23)) ->  | J23: =IF(ISERROR((F23-D23)/E23),"",(F23-D23)/E23) ->  | L23: =+IF(ISERROR((D23+K23*E23)/(F23*K23)),"",(D23+K23*E23)/(F23*K23)) ->  | M23: =IF(ISERROR(K23*L23),"",K23*L23) ->  | N23: =+IF(ISERROR(H23*(D23/(D23+E23*K23))),"",H23*(D23/(D23+E23*K23))) ->  | O23: =IF(ISERROR(H23-N23),"",H23-N23) ->  | P23: =IF(ISERROR(N23*1000/D23),"",N23*1000/D23) -> 
B24: Exported power | I24: =IF(ISERROR(D24/(F24-E24)),"",D24/(F24-E24)) ->  | J24: =IF(ISERROR((F24-D24)/E24),"",(F24-D24)/E24) ->  | L24: =+IF(ISERROR((D24+K24*E24)/(F24*K24)),"",(D24+K24*E24)/(F24*K24)) ->  | M24: =IF(ISERROR(K24*L24),"",K24*L24) ->  | N24: =+IF(ISERROR(H24*(D24/(D24+E24*K24))),"",H24*(D24/(D24+E24*K24))) ->  | O24: =IF(ISERROR(H24-N24),"",H24-N24) -> 
I25: =IF(ISERROR(D25/(F25-#REF!)),"",D25/(F25-#REF!)) ->  | J25: =IF(ISERROR((F25-D25)/#REF!),"",(F25-D25)/#REF!) ->  | L25: =+IF(ISERROR((D25+K25*#REF!)/(F25*K25)),"",(D25+K25*#REF!)/(F25*K25)) ->  | M25: =IF(ISERROR(K25*L25),"",K25*L25) ->  | N25: =+IF(ISERROR(H25*(D25/(D25+#REF!*K25))),"",H25*(D25/(D25+#REF!*K25))) ->  | O25: =IF(ISERROR(H25-N25),"",H25-N25) ->  | Q25: =IF(ISERROR(O25*1000/#REF!),"",O25*1000/#REF!) -> 
B31: The equations used to calculate emission allocations in the table above are mathematically identical to those in the current WRI default efficiency method. However, they have been rearranged to allow the user to select a value for the parameter that controls the allocation (the ratio of efficiencies) in a way that is consistent with the energy balance for the CHP system. The rearrangements have been made so that the assumptions inherrent to the efficiency method, and their implications, are more clear. The equations make it clear that (a) the parameter that controls the allocation is the ratio of the efficiencies for heat and power generation, and (b) this ratio and the individual efficiencies are constrained by the energy balance.

Sheet Indirect - Energy Imports
C1: Indirect Emissions
C2: Electricity and/or steam imports
B4: EXPLANATION OF CELL COLOR SCHEME
D5: User entry
D6: Calculated value
C9: Indirect Emissions from electricity and steam imports
D11: Step 1 | E11: Step 2 | H11: Step 3 | K11: Step 4
D12: A | E12: B | F12: C | G12: D | H12: E | I12: F | J12: G | K12: H
D13: Electricity and/or steam Import | E13: CO2 emission factor for imported electricity or steam* | F13: CH4 emission factor for imported electricity or steam* | G13: N2O emission factor for imported electricity or steam* | H13: Indirect CO2 emissions in metric tonnes | I13: Indirect CH4 emissions in metric tonnes | J13: Indirect N2O emissions in metric tonnes | K13: Explain source or basis of emission factors for estimating emissions from imported electricity or steam
H14: E = A * B / 2205 | I14: F = A * C / 2205 | J14: G = A * D / 2205
D15: MWh | E15: lb CO2 / MWh | F15: lb CH4 / MWh | G15: lb N2O / MWh | H15: metric tons CO2 | I15: metric tons CH4 | J15: metric tons N2O | K15: Text explanation
C17: Stream description
H18: =$D18*E18/2205 -> 0 | I18: =$D18*F18/2205 -> 0 | J18: =$D18*G18/2205 -> 0
H19: =$D19*E19/2205 -> 0 | I19: =$D19*F19/2205 -> 0 | J19: =$D19*G19/2205 -> 0
H20: 0 | I20: 0 | J20: 0
H21: 0 | I21: 0 | J21: 0
H22: 0 | I22: 0 | J22: 0
H23: 0 | I23: 0 | J23: 0
H24: 0 | I24: 0 | J24: 0
H25: 0 | I25: 0 | J25: 0
H26: 0 | I26: 0 | J26: 0
H27: 0 | I27: 0 | J27: 0
H28: tonnes CO2 | I28: tonnes CH4 | J28: tonnes N2O
F29: Step 4: Sum GHG emissions: | H29: =SUM(H18:H27) -> 0 | I29: =SUM(I18:I27) -> 0 | J29: =SUM(J18:J27) -> 0
C31: * Emission factors for purchased electricity can normally be obtained from national authorities or from the supplier of the purchased electricity. Emission factors for imported electricity or steam from CHP systems can be determined by the methods outlined in the "CHP Allocation" worksheet.
C35: Note: The emissions associated with electricity and/or steam import
C36: should be reported in scope 2 as indirect emissions.

Sheet Indirect - Energy Exports
C1: Emissions Associated with Exports of Electricity and Steam
C3: Note: The emissions and indirect emissions impacts related to electricity and steam exports
C4: should be reported separately from indirect emissions from imported power or steam
C7: User entry
C8: Calculated value
C11: Indirect emission impacts related to electricity and steam exports
C14: The indirect emissions impact is based on amount of emissions associated with producing the exported power or steam
D16: Step 1 | E16: Step 2 | H16: Step 3 | I16: Step 4 | L16: Step 5
D17: A | E17: B | F17: C | G17: D | H17: E | I17: F | J17: G | K17: H | L17: I
D18: Total electricity/steam production by generator | E18: Total direct CO2 emissions from generating the total electricity/steam | F18: Total direct CH4 emissions from generating the total electricity/steam | G18: Total direct N2O emissions from generating the total electricity/steam | H18: Electricity/steam exports from generator | I18: Indirect CO2 emissions impact related to exported power or steam | J18: Indirect CH4 emissions impact related to exported power or steam | K18: Indirect N2O emissions impact related to exported power or steam | L18: Carbon intensity of exported power or steam | N18: Carbon intensity of power on the grid into which the export occurred (applies to electricity only)
I19: F = B * E / A | J19: G = C * E / A | K19: H = D * E / A | L19: I = [ F + (G*GWP_CH4) + (H*GWP_N2O) ] / E
D20: MWh | E20: metric tonnes CO2 | F20: metric tonnes CH4 | G20: metric tonnes N2O | H20: MWh | I20: metric tonnes CO2 | J20: metric tonnes CH4 | K20: metric tonnes N2O | L20: metric tonnes CO2 equiv. / MWh | N20: metric tonnes CO2 equiv / MWh
C22: Stream description
I23: =IF($D23=0,"",E23*$H23/$D23) ->  | J23: =IF($D23=0,"",F23*$H23/$D23) ->  | K23: =IF($D23=0,"",G23*$H23/$D23) ->  | L23: =+IF(H23=0,"",(I23+J23*GWP_CH4+K23*GWP_N2O)/H23) -> 
I24: =IF($D24=0,"",E24*$H24/$D24) -> 
I31: =IF($D31=0,"",E31*$H31/$D31) -> 
I32: tonnes CO2 | J32: tonnes CH4 | K32: tonnes N2O
E33: Step 5: Sum CO2 emissions impacts related to exported power or steam: | I33: =SUM(I23:I31) -> 0 | J33: =SUM(J23:J31) -> 0 | K33: =SUM(K23:K31) -> 0

Sheet Summary Table
C1: Summary of Inventory Results
C3: Summary of Inventory Results
C4: Name of Inventory | F4: =IF('Operations in Inventory'!F8="","",'Operations in Inventory'!F8) -> 
C6: General description of inventory boundaries | F6: =IF('Operations in Inventory'!F10="","",'Operations in Inventory'!F10) -> 
C8: Direct Emission Impacts | F8: CO2 (metric tonnes) | G8: CH4 (metric tonnes) | H8: N2O (metric tonnes) | I8: CO2-equiv (metric tonnes)
C9: Direct emissions from stationary fuel combustion | F9: ='Direct - Fuel Combust.'!I34 -> 0 | G9: ='Direct - Fuel Combust.'!J34 -> 0 | H9: ='Direct - Fuel Combust.'!K34 -> 0 | I9: =F9+G9*GWP_CH4+H9*GWP_N2O -> 0
D11: Direct emissions attributable to exports of steam and power (a subset of direct emissions from stationary combustion) | F11: ='Indirect - Energy Exports'!I33 -> 0 | G11: ='Indirect - Energy Exports'!J33 -> 0 | H11: ='Indirect - Energy Exports'!K33 -> 0 | I11: =F11+G11*GWP_CH4+H11*GWP_N2O -> 0
C13: Direct emissions from transportation and mobile sources | F13: ='Mobile & Transportation'!I109 -> 0 | G13: ='Mobile & Transportation'!J109 -> 0 | H13: ='Mobile & Transportation'!K109 -> 0 | I13: =F13+G13*GWP_CH4+H13*GWP_N2O -> 0
C15: Direct emissions from waste management | F15: N/A | G15: ='Waste Mngmt.'!Q46+'Waste Mngmt.'!J157 -> 0 | H15: N/A | I15: =G15*GWP_CH4 -> 0
C17: Total direct emissions | F17: =F9+F13 -> 0 | G17: =G9+G13+G15 -> 0 | H17: =H9+H13 -> 0 | I17: =F17+G17*GWP_CH4+H17*GWP_N2O -> 0
C19: Indirect Emission Impacts | F19: CO2 (metric tonnes) | G19: CH4 (metric tonnes) | H19: N2O (metric tonnes) | I19: CO2-equiv (metric tonnes)
C20: Indirect emissions from steam and power imports | F20: ='Indirect - Energy Imports'!H29 -> 0 | G20: ='Indirect - Energy Imports'!I29 -> 0 | H20: ='Indirect - Energy Imports'!J29 -> 0 | I20: =F20+G20*GWP_CH4+H20*GWP_N2O -> 0
C22: Indirect emissions from transportation and mobile sources | F22: ='Mobile & Transportation'!L109 -> 0 | G22: ='Mobile & Transportation'!M109 -> 0 | H22: ='Mobile & Transportation'!N109 -> 0 | I22: =F22+G22*GWP_CH4+H22*GWP_N2O -> 0
C24: Indirect emissions from waste management | F24: N/A | G24: ='Waste Mngmt.'!R46+'Waste Mngmt.'!K157 -> 0 | H24: N/A | I24: =G24*GWP_CH4 -> 0
C26: Total indirect emissions | F26: =F20+F22 -> 0 | G26: =G20+G22+G24 -> 0 | H26: =H20+H22 -> 0 | I26: =F26+G26*GWP_CH4+H26*GWP_N2O -> 0
C30: Combustion-Related Releases of Biomass-Derived CO2 | F30: CO2 (metric tonnes) | I30: CO2-equiv (metric tonnes)
C31: Combustion-Related Releases of Biomass-Derived CO2 [ metric tons CO2 / year ] | F31: ='Biomass Combustion CO2'!J33 -> 0 | G31: N/A | H31: N/A | I31: N/A

Sheet Custom Emission Factors
C2: Custom Emission Factors
C3: Calculating custom emission factors
B5: EXPLANATION OF CELL COLOR SCHEME
D6: User entry
D7: Calculated value
D11: A | E11: B | F11: C
D12: Fuel Higher Heating Value (HHV) | E12: Carbon Content | F12: Emission Factor
F13: C = 2000 * B * 3.664 / A
D14: MMBtu HHV / short ton | E14: (% w/w) | F14: lb CO2 / MMBtu HHV
E15: This should be entered as a fraction, i.e. 0 > x > 1
C17: Fuel Type
F18: =IF(D18=0,0,3.664*2000*E18/D18) -> 0
F19: =IF(D19=0,0,3.664*2000*E19/D19) -> 0
F20: =IF(D20=0,0,3.664*2000*E20/D20) -> 0
F21: =IF(D21=0,0,3.664*2000*E21/D21) -> 0
F22: =IF(D22=0,0,3.664*2000*E22/D22) -> 0

Sheet Energy content
A2: Energy content (HHV)
A3: Fuel specific higher heating values
A4: Based on information in WRI/WBCSD Calculation tools
B8: Fuel type | C8: Higher heating value | D8: Carbon, % by weight | E8: Typical density
C9: (MMBtu HHV/bbl - 42 gal) if not otherwise mentioned | E9: ( lb/gal ) if not otherwise mentioned
B11: Gasoline / petrol | C11: 5.46 | D11: 85.5 | E11: 6.17
B12: Kerosene | C12: 5.67 | D12: 86.01 | E12: 6.76
B13: Distillate fuel oil No.1 | C13: 5.88 | D13: 86.6 | E13: 7.05
B14: Distillate fuel oil No.2 | C14: 5.88 | D14: 87.3 | E14: 7.05
B15: Residual fuel oil No.4 | C15: 6.01 | D15: 86.4 | E15: 7.59
B16: Residual fuel oil No.5 | C16: 6.3 | D16: 88.7 | E16: 7.93
B17: Residual fuel oil No.6 | C17: 6.43 | D17: 88.3 | E17: 8.45
B18: LPG | C18: 3.95 | E18: 4.52 (liquid)
B19: Anthracite | C19: 12,500 Btu/lb | D19: 80.6
B20: Bituminous coal | C20: 13,500 Btu/lb | D20: 80.1
B21: Sub Bituminous coal‡ | C21: 8735 Btu/lb
B22: Lignite‡ | C22: 6480 Btu/lb
B23: Butane | C23: 4.09 | D23: 83.6 | E23: 4.84 (liquid)
B24: Propane | C24: 3.8 | D24: 81.6 | E24: 4.24 (liquid)
B25: Coke | C25: 12,690 Btu/lb | D25: 85
B26: Natural gas* | C26: 1050 Btu/ft3 | D26: 69.4 wt% C (92.5 wt% CH4) | E26: 0.042 lb/ft3
B27: Wood (40% H2O)** | C27: 10.9 MMBtu/ton
B28: Wood (20% H2O)** | C28: 15.5 MMBtu/ton
B29: Wood (15% H2O)** | C29: 16.6 MMBtu/ton
B30: Wood (0% H2O)** | C30: 20.0MMBtu/ton
B32: Source (unless otherwise noted): American Petroleum Institute (API), Compendium of Greenhouse Gas Emissions Estimation Methodologies for the Oil & Gas Industry (Pilot Test Version), 2001.
B33: *Based on "standard conditions" of 60oF (15.6oC) and 1 atm pressure, per API
B34: ** calculated based on LHV values contained in Revised 1996 IPCC Guidelines for National Greenhouse Gas Inventories: Reference Manual Volume 3, Table 1-13; converted to HHV values based on the assumption that, for biomass fuels, LHV is 95% of HHV.
B35: ‡Calculated from data in Instructions for Form EIA-1605b Voluntary Reporting of Greenhouse Gases, for Data Through 2002, US Department of Energy, Energy Information Administration, Form EIA-1605 (2003), OMB No. 1905-0194, Appendix B, Page 48, available on the internet at ftp://ftp.eia.doe.gov/pub/oiaf/1605/cdrom/pdf/1605INSTR02.pdf (31 October 2003)

Sheet Conversion Factors
A2: Conversion Factors
A3: Based on information in WRI/WBCSD Calculation tools
C6: Mass
C7: 1 pound (lb) | D7: 453.6 grams (g) | E7: 0.4536 kilograms (kg) | F7: 0.0004536 metric tonnes
C8: 1 kilogram (kg) | D8: 2.205 pounds (lb)
C9: 1 short ton (ton) | D9: 2,000 pounds (lb) | E9: 907.2 kilograms (kg)
C10: 1 metric tonne | D10: 2,205 pounds (lb) | E10: 1,000 kilograms (kg) | F10: 1.1023 short tons (tons)
C12: Volume
C13: 1 cubic foot (ft 3) | D13: 7.4805 gallons (gal) | E13: 0.1781 barrel (bbl)
C14: 1 cubic foot (ft 3) | D14: 28.32 liters (L) | E14: 0.02832 cubic meters (m 3)
C15: 1 gallon (US liquid - gal) | D15: 0.0238 barrel (bbl) | E15: 3.785 liters (L) | F15: 0.003785 cubic meters (m 3)
C16: 1 barrel (bbl) | D16: 42 gallons (gal) | E16: 158.99 liters (L) | F16: 0.1589 cubic meters (m 3)
C17: 1 litre (L) | D17: 0.001 cubic meters (m 3) | E17: 0.2642 gallons (gal)
C18: 1 cubic meter (m 3) | D18: 6.2897 barrels (bbl) | E18: 264.2 gallons (gal) | F18: 1,000 liters (L)
C20: Energy
C21: 1 kilowatt hour (kWh) | D21: 3412 Btu (btu) | E21: 3,600 kilojoules (KJ)
C22: 1 megajoule (MJ) | D22: 0.001 gigajoules (GJ)
C23: 1 gigajoule (GJ) | D23: 0.9478 million Btu (million btu) | E23: 277.8 kilowatt hours (kWh)
C24: 1 Btu (btu) | D24: 1,055 joules (J)
C25: 1 million Btu (million btu) | D25: 1.055 gigajoules (GJ) | E25: 293 kilowatt hours (kWh)
C26: 1 therm (therm) | D26: 100,000 btu | E26: 0.1055 gigajoules (GJ) | F26: 29.3 kilowatt hours (kWh)
C28: Other
C29: kilo | D29: 1,000
C30: mega | D30: 1,000,000
C31: giga | D31: 1,000,000,000
C32: tera | D32: 1,000,000,000,000
C33: 1 psi | D33: 0.06895 bar
C34: 1 kgf / cm 3 (tech atm) | D34: 0.9807 bar
C35: 1 atmosphere (atm) | D35: 1.01325 bar | E35: 101.325 kilo pascals | F35: 14.696 pounds per square inch (psia)
C36: 1 mile (statue) | D36: 1.609 kilometers
C37: 1 metric tonne carbon | D37: 3.664 metric tonnes CO2

Sheet Biomass Combustion CO2
C3: Additional Information on Biomass
C4: Estimating CO2 Emissions from Biomass Combustion.
B5: Many wood products manufacturing facilities generate more than half of their energy needs from biomass fuels recovered from the industry’s waste and process streams. The CO2 generated when biomass fuels are burned is not included in GHG emissions totals. The GHG Protocol, however, requires that biomass-derived CO2 be reported as additional information. This is the approach generally prescribed for national inventories by the United Nations Framework Convention on Climate Change.
B7: Any increases or decreases in the amount of carbon sequestered by the forests are accounted for in the comprehensive forest accounting system. This is the approach generally prescribed for national inventories by the United Nations Framework Convention on Climate Change. Most international protocols including that of the Intergovernmental Panel on Climate Change (IPCC) have adopted the convention set out by the United Nations.
B9: Estimated Biomass Emissions: The information reported below on biomass emissions is being supplied:  To ensure that readers understand the entity’s overall energy profile in terms of both greenhouse gas emissions, and non-greenhouse gas emissions, and  To provide awareness and understanding of how biomass fuels are generated and used in the manufacture of wood products. Also, note that the information reported below is in conformance with the general greenhouse gas protocol designed by the World Resources Institute and the World Business Council for Sustainable Development. Users of these calculation tools may elect to modify the format and type of information presented based on specific facility or company needs.
B12: EXPLANATION OF CELL COLOR SCHEME
B13: User entry
B14: Calculated value
C18: Additional Information on Biomass Carbon Emissions from Combustion of Wood or Bark
E19: Step 1 | G19: Step 2 | I19: Step 3
E20: A | F20: B | G20: C | H20: D | I20: E | J20: F
E21: Quantity of fuel burned | F21: Unit used to measure quantitiy of fuel use [Note: Be careful not to mix HHVs and LHVs.] | G21: CO2 emission factor: [default value is: solid biomass: 240* lb CO2/MMBtu HHV] | H21: Unit of CO2 emission factor | I21: CO2 emissions in lb CO2/yr | J21: CO2 emissions in metric tonnes/yr
I22: E = A * C | J22: F = E / 2205
C23: Example: Bark Boiler | D23: Bark | E23: 500000 | F23: MMBtu (HHV) | G23: 240 | H23: lb CO2 / MMBtu HHV | I23: =E23*G23 -> 120000000 | J23: =I23/2205 -> 54421.76871
C24: Source description | D24: Fuel type
I25: =IF(E25="","",E25*G25) ->  | J25: =IF(ISERROR(I25/2205),"",I25/2205) -> 
I26: =IF(E26="","",E26*G26) ->  | J26: =IF(ISERROR(I26/2205),"",I26/2205) -> 
G33: Biomass Carbon Released as CO2 from Combustion of Wood or Bark | J33: =SUM(J25:J31) -> 0 | K33: Metric Tonne /year
C35: Note: | D35: * Emission factor for solid biomass from Intergovernmental Panel on Climate Change (IPCC). 1997. Revised 1996 IPCC Guidelines for National Greenhouse Gas Inventories: Reference Manual (Volume 3). Table 1.1, corrected for 1% unburned carbon per USEPA AP-42 Emission Factors for Wood Residue Combustion in Boilers – Supplement G, July 2001. United States Environmental Protection Agency. Washington, D.C.
D36: Based on HHV - normally LHV assumed to be 95% of HHV for biomass fuels

Sheet GWPs
A1: Global Warming Potentials from IPCC Assessment Reports
C2: 20 year time horizon | H2: 100 year time horizon | M2: 500 year time horizon
A3: Species | B3: Chemical formula | C3: SAR (AR2) | D3: TAR (AR3) | E3: AR4 | F3: AR5 | G3: AR6 | H3: SAR (AR2) | I3: TAR (AR3) | J3: AR4 | K3: AR5 | L3: AR6 | M3: SAR (AR2) | N3: TAR (AR3) | O3: AR4 | P3: AR5 | Q3: AR6
A4: Carbon dioxide | B4: CO2 | C4: 1 | D4: 1 | E4: 1 | F4: 1 | G4: 1 | H4: 1 | I4: 1 | J4: 1 | K4: 1 | L4: 1 | M4: 1 | N4: 1 | O4: 1 | Q4: 1
A5: Methane | B5: CH4 | C5: 56 | D5: 62 | E5: 72 | F5: 84 | G5: 81.2 | H5: 21 | I5: 23 | J5: 25 | K5: 28 | L5: 27.9 | M5: 6.5 | N5: 7 | O5: 7.6 | Q5: 7.95
A6: Methane, fossil origin | B6: CH4 | F6: 85 | G6: 82.5 | K6: 30 | L6: 29.8 | Q6: 10
A7: Methane, non-fossil origin | B7: CH4 | G7: 80.8 | L7: 27.2 | Q7: 7.3
A8: Nitrous oxide | B8: N2O | C8: 280 | D8: 275 | E8: 289 | F8: 264 | G8: 273 | H8: 310 | I8: 296 | J8: 298 | K8: 265 | L8: 273 | M8: 170 | N8: 156 | O8: 153 | Q8: 130
A10: IPCC Assessment Report | B10: Year | C10: Link
A11: AR6 | B11: 2021 | C11: https://www.ipcc.ch/report/ar6/wg1/downloads/report/IPCC_AR6_WGI_Full_Report.pdf
A12: AR5 | B12: 2013 | C12: https://www.ipcc.ch/site/assets/uploads/2018/02/WG1AR5_all_final.pdf
A13: AR4 | B13: 2007 | C13: https://www.ipcc.ch/site/assets/uploads/2018/05/ar4_wg1_full_report-1.pdf
A14: TAR (AR3) | B14: 2001 | C14: https://www.ipcc.ch/site/assets/uploads/2018/03/WGI_TAR_full_report.pdf
A15: SAR (AR2) | B15: 1996 | C15: https://www.ipcc.ch/site/assets/uploads/2018/02/ipcc_sar_wg_I_full_report.pdf

Sheet Revisions
A1: Version | B1: Changes | C1: Implementor | D1: Date
A2: 1.1 | B2: Updated 100 year global warming potentials to IPCC AR6 and modified spreadsheet to enable easily changed GWPs. | C2: BJM | D2: 2022-02-10
B3: Corrected error in Method 3 for reported methane generation. | C3: BJM | D3: 2022-02-10
B4: Changed Method 3 on waste management tab to conform to IPCC methodology | C4: BJM | D4: 2022-03-01
B5: Created Revision tab | C5: BJM | D5: 2022-03-01
